[Event "Early-Titled-Tuesday-Blitz-September-05-2023"]
[Site "Chess.com"]
[Date "2023.09.05"]
[Round "4"]
[White "Chopper1905"]
[Black "Firouzja2003"]
[Result "1-0"]
[WhiteElo "2888"]
[BlackElo "3118"]
[TimeControl "180+1"]
[EndTime "8:39:04 PDT"]
[Termination "Chopper1905 won by resignation"]

1. d4 {[%clk 0:02:58.5]} 1... Nf6 {[%clk 0:02:48.4]} 2. c4 {[%clk 0:02:58.5]}
2... g6 {[%clk 0:02:48]} 3. Nc3 {[%clk 0:02:58.5]} 3... Bg7 {[%clk 0:02:47.6]}
4. e4 {[%clk 0:02:58.7]} 4... d6 {[%clk 0:02:47.7]} 5. Nf3 {[%clk 0:02:59.2]}
5... O-O {[%clk 0:02:46.8]} 6. Be2 {[%clk 0:02:59.7]} 6... e5 {[%clk 0:02:45.3]}
7. O-O {[%clk 0:02:59.9]} 7... Na6 {[%clk 0:02:44.6]} 8. Be3 {[%clk 0:02:59]}
8... Qe7 {[%clk 0:02:44.1]} 9. Bg5 {[%clk 0:02:44.6]} 9... exd4 {[%clk
0:02:34.6]} 10. Nd5 {[%clk 0:02:44.6]} 10... Qd8 {[%clk 0:02:34.5]} 11. Nxd4
{[%clk 0:02:45.1]} 11... c6 {[%clk 0:02:24.3]} 12. Nxf6+ {[%clk 0:02:45.4]}
12... Bxf6 {[%clk 0:02:24.8]} 13. Bxf6 {[%clk 0:02:46.3]} 13... Qxf6 {[%clk
0:02:25.2]} 14. Qd2 {[%clk 0:02:45.7]} 14... Nc5 {[%clk 0:02:11.8]} 15. f3
{[%clk 0:02:46]} 15... a5 {[%clk 0:02:11]} 16. b3 {[%clk 0:02:45.8]} 16... Rd8
{[%clk 0:02:10.3]} 17. Rad1 {[%clk 0:02:44.6]} 17... Qe7 {[%clk 0:02:01.3]} 18.
Rfe1 {[%clk 0:02:44.6]} 18... Be6 {[%clk 0:02:00.7]} 19. Bf1 {[%clk 0:02:44.7]}
19... f6 {[%clk 0:01:48.5]} 20. Qe3 {[%clk 0:02:41.7]} 20... Bf7 {[%clk
0:01:48.5]} 21. Rd2 {[%clk 0:02:28.2]} 21... d5 {[%clk 0:01:27.6]} 22. cxd5
{[%clk 0:02:02.6]} 22... cxd5 {[%clk 0:01:27.7]} 23. e5 {[%clk 0:01:28.1]} 23...
fxe5 {[%clk 0:01:05.3]} 24. Qxe5 {[%clk 0:01:28.3]} 24... Qxe5 {[%clk 0:01:05]}
25. Rxe5 {[%clk 0:01:29.2]} 25... Rac8 {[%clk 0:01:00.4]} 26. g4 {[%clk
0:01:02.8]} 26... Kf8 {[%clk 0:00:57.4]} 27. h4 {[%clk 0:00:57.7]} 27... Rd6
{[%clk 0:00:45.3]} 28. Kf2 {[%clk 0:00:48.6]} 28... Nd7 {[%clk 0:00:38.4]} 29.
Re1 {[%clk 0:00:44.5]} 29... Nf6 {[%clk 0:00:38.5]} 30. Bh3 {[%clk 0:00:37.3]}
30... Rcd8 {[%clk 0:00:25.6]} 31. Rc1 {[%clk 0:00:36.2]} 31... Ne8 {[%clk
0:00:22.3]} 32. g5 {[%clk 0:00:30.7]} 32... Rb6 {[%clk 0:00:20]} 33. Rc5 {[%clk
0:00:23.1]} 33... a4 {[%clk 0:00:20.2]} 34. bxa4 {[%clk 0:00:21.8]} 34... Rb4
{[%clk 0:00:20.6]} 35. Rb5 {[%clk 0:00:20.6]} 35... Rxa4 {[%clk 0:00:16.7]} 36.
Rxb7 {[%clk 0:00:20.9]} 36... Nd6 {[%clk 0:00:17.4]} 37. Rd7 {[%clk 0:00:21.1]}
37... Rxd7 {[%clk 0:00:16.4]} 38. Bxd7 {[%clk 0:00:22]} 38... Ra3 {[%clk
0:00:15]} 39. Be6 {[%clk 0:00:18.5]} 39... Nc4 {[%clk 0:00:14.5]} 40. Re2 {[%clk
0:00:17.7]} 40... Rd3 {[%clk 0:00:14.6]} 41. Nb5 {[%clk 0:00:09.3]} 41... Be8
{[%clk 0:00:13.9]} 42. Nc7 {[%clk 0:00:09.4]} 42... Bc6 {[%clk 0:00:14.6]} 43.
a4 {[%clk 0:00:08.3]} 43... Na5 {[%clk 0:00:08.6]} 44. Bg4 {[%clk 0:00:07.7]}
44... Nc4 {[%clk 0:00:03.8]} 45. h5 {[%clk 0:00:07.9]} 45... d4 {[%clk
0:00:01.6]} 46. h6 {[%clk 0:00:07.6]} 46... Ne3 {[%clk 0:00:01.6]} 47. Ne6+
{[%clk 0:00:08]} 47... Kg8 {[%clk 0:00:02]} 48. Bh3 {[%clk 0:00:07.9]} 48... Bd5
{[%clk 0:00:02.2]} 49. Nf4 {[%clk 0:00:07.9]} 49... Rd1 {[%clk 0:00:01.7]} 50.
Nxd5 {[%clk 0:00:06.6]} 50... Nxd5 {[%clk 0:00:01.3]} 51. Be6+ {[%clk
0:00:06.9]} 51... Kf8 {[%clk 0:00:01.9]} 52. Bxd5 {[%clk 0:00:07.8]} 52... d3
{[%clk 0:00:02.3]} 53. Rb2 {[%clk 0:00:07.2]} 53... d2 {[%clk 0:00:02.5]} 54.
Bb3 {[%clk 0:00:06.1]} 54... Rh1 {[%clk 0:00:01.6]} 55. Rxd2 {[%clk 0:00:05.9]}
55... Rh2+ {[%clk 0:00:02.3]} 56. Ke3 {[%clk 0:00:06]} 56... Rh1 {[%clk
0:00:02.3]} 57. Rd7 {[%clk 0:00:05.7]} 57... Re1+ {[%clk 0:00:02.2]} 58. Kf2
{[%clk 0:00:05.7]} 58... Rb1 {[%clk 0:00:01.4]} 59. Rf7+ {[%clk 0:00:05.9]}
59... Ke8 {[%clk 0:00:01.5]} 60. Bd5 {[%clk 0:00:05.8]} 60... Rd1 {[%clk
0:00:01.6]} 61. Rxh7 {[%clk 0:00:05.4]} 61... Rd2+ {[%clk 0:00:01.5]} 62. Kg3
{[%clk 0:00:05.3]} 62... Rxd5 {[%clk 0:00:02.2]} 63. Kg4 {[%clk 0:00:03.5]}
63... Rd4+ {[%clk 0:00:01.9]} 64. f4 {[%clk 0:00:04.1]} 64... Rd1 {[%clk
0:00:02.3]} 65. Rb7 {[%clk 0:00:04.3]} 65... Rg1+ {[%clk 0:00:02.5]} 66. Kf3
{[%clk 0:00:04.8]} 66... Rb1 {[%clk 0:00:03.4]} 67. Rxb1 {[%clk 0:00:04.2]} 1-0

[Event "Early-Titled-Tuesday-Blitz-September-05-2023"]
[Site "Chess.com"]
[Date "2023.09.05"]
[Round "4"]
[White "meoluoi91"]
[Black "fen_fire"]
[Result "1/2-1/2"]
[WhiteElo "2678"]
[BlackElo "2485"]
[TimeControl "180+1"]
[EndTime "8:39:05 PDT"]
[Termination "Game drawn by repetition"]

1. Nf3 {[%clk 0:03:00.9]} 1... Nf6 {[%clk 0:03:00.3]} 2. g3 {[%clk 0:02:53.5]}
2... d6 {[%clk 0:03:00]} 3. Bg2 {[%clk 0:02:54.4]} 3... Nbd7 {[%clk 0:03:00]} 4.
O-O {[%clk 0:02:54.5]} 4... g6 {[%clk 0:03:00.3]} 5. d4 {[%clk 0:02:54.6]} 5...
Bg7 {[%clk 0:03:00.7]} 6. a4 {[%clk 0:02:54.5]} 6... O-O {[%clk 0:03:01]} 7. a5
{[%clk 0:02:54.8]} 7... a6 {[%clk 0:03:00.5]} 8. c3 {[%clk 0:02:54.6]} 8... c6
{[%clk 0:02:59.4]} 9. Nbd2 {[%clk 0:02:53.3]} 9... e5 {[%clk 0:02:59.3]} 10. e4
{[%clk 0:02:51.8]} 10... Re8 {[%clk 0:02:59.3]} 11. Re1 {[%clk 0:02:52]} 11...
Qc7 {[%clk 0:02:58.8]} 12. Qc2 {[%clk 0:02:51.7]} 12... Nf8 {[%clk 0:02:51.5]}
13. dxe5 {[%clk 0:02:51.1]} 13... dxe5 {[%clk 0:02:51.3]} 14. Nc4 {[%clk
0:02:51.2]} 14... Bg4 {[%clk 0:02:29]} 15. Nh4 {[%clk 0:02:50.7]} 15... Be6
{[%clk 0:02:26.1]} 16. Nb6 {[%clk 0:02:41.8]} 16... Rad8 {[%clk 0:02:26.2]} 17.
Be3 {[%clk 0:02:40.5]} 17... Ng4 {[%clk 0:02:21]} 18. Bc5 {[%clk 0:02:37]} 18...
Nd7 {[%clk 0:02:19.9]} 19. Nxd7 {[%clk 0:02:36.5]} 19... Rxd7 {[%clk 0:02:20.8]}
20. h3 {[%clk 0:02:36.1]} 20... Nf6 {[%clk 0:02:19.3]} 21. Nf3 {[%clk 0:02:36]}
21... Qc8 {[%clk 0:02:08.7]} 22. g4 {[%clk 0:02:35]} 22... Qb8 {[%clk
0:01:39.1]} 23. Bb6 {[%clk 0:02:29.5]} 23... h5 {[%clk 0:01:32.4]} 24. Ng5
{[%clk 0:02:20]} 24... hxg4 {[%clk 0:01:28.6]} 25. Nxe6 {[%clk 0:02:18.9]} 25...
Rxe6 {[%clk 0:01:29.5]} 26. hxg4 {[%clk 0:02:19]} 26... Rde7 {[%clk 0:01:06.4]}
27. Bh3 {[%clk 0:02:08.1]} 27... Nd7 {[%clk 0:01:03.9]} 28. Be3 {[%clk
0:02:06.3]} 28... Rd6 {[%clk 0:01:00.6]} 29. b4 {[%clk 0:02:02.6]} 29... Re8
{[%clk 0:00:57.4]} 30. g5 {[%clk 0:01:59.2]} 30... Nf8 {[%clk 0:00:53.6]} 31.
Bc5 {[%clk 0:01:54.8]} 31... Rdd8 {[%clk 0:00:52.9]} 32. Bb6 {[%clk 0:01:54.8]}
32... Rd6 {[%clk 0:00:52.7]} 33. Re3 {[%clk 0:01:51.5]} 33... Ne6 {[%clk
0:00:51.6]} 34. Bxe6 {[%clk 0:01:50.5]} 34... fxe6 {[%clk 0:00:44.9]} 35. Rf3
{[%clk 0:01:42.5]} 35... Qc8 {[%clk 0:00:37.7]} 36. Kg2 {[%clk 0:01:40.6]} 36...
Qd7 {[%clk 0:00:37.3]} 37. Be3 {[%clk 0:01:33.8]} 37... Rf8 {[%clk 0:00:34.5]}
38. Rh3 {[%clk 0:01:32.1]} 38... Rd3 {[%clk 0:00:24.8]} 39. Rah1 {[%clk
0:01:30]} 39... Qd8 {[%clk 0:00:20.6]} 40. Rg3 {[%clk 0:01:24.5]} 40... Rf7
{[%clk 0:00:20.3]} 41. Rhh3 {[%clk 0:01:12.8]} 41... Rfd7 {[%clk 0:00:20.1]} 42.
Qb3 {[%clk 0:01:08.5]} 42... Qe8 {[%clk 0:00:18.1]} 43. Qc4 {[%clk 0:01:08.5]}
43... Rd1 {[%clk 0:00:17.2]} 44. Rh4 {[%clk 0:01:06.9]} 44... Qf7 {[%clk
0:00:16.6]} 45. Rgh3 {[%clk 0:01:06.7]} 45... Rb1 {[%clk 0:00:15.3]} 46. Rh1
{[%clk 0:01:02.6]} 46... Rdd1 {[%clk 0:00:14.6]} 47. Rxd1 {[%clk 0:00:44.7]}
47... Rxd1 {[%clk 0:00:15.5]} 48. Qe2 {[%clk 0:00:43.5]} 48... Qd7 {[%clk
0:00:14.2]} 49. Rh3 {[%clk 0:00:41]} 49... Qd3 {[%clk 0:00:13.4]} 50. Qg4 {[%clk
0:00:40.5]} 50... Qf1+ {[%clk 0:00:13.2]} 51. Kf3 {[%clk 0:00:40.7]} 51... Kf7
{[%clk 0:00:12.2]} 52. Rh2 {[%clk 0:00:35.1]} 52... Rd3 {[%clk 0:00:11.8]} 53.
c4 {[%clk 0:00:24.1]} 53... Rb3 {[%clk 0:00:09.4]} 54. Kg3 {[%clk 0:00:20.9]}
54... Qg1+ {[%clk 0:00:07.8]} 55. Rg2 {[%clk 0:00:20.6]} 55... Qe1 {[%clk
0:00:07.3]} 56. Qf3+ {[%clk 0:00:18.5]} 56... Kg8 {[%clk 0:00:07.4]} 57. Qg4
{[%clk 0:00:17.4]} 57... Rxe3+ {[%clk 0:00:07.1]} 58. Kh2 {[%clk 0:00:15.1]}
58... Rxe4 {[%clk 0:00:06.7]} 59. Qxe6+ {[%clk 0:00:15]} 59... Kf8 {[%clk
0:00:07.4]} 60. Qc8+ {[%clk 0:00:14.4]} 60... Kf7 {[%clk 0:00:07]} 61. Qd7+
{[%clk 0:00:14]} 61... Kf8 {[%clk 0:00:05.5]} 62. Qd8+ {[%clk 0:00:13.3]} 62...
Kf7 {[%clk 0:00:05.6]} 63. Qd7+ {[%clk 0:00:13.5]} 63... Kf8 {[%clk 0:00:05.7]}
64. Qc8+ {[%clk 0:00:13.7]} 64... Kf7 {[%clk 0:00:05.7]} 65. Qd7+ {[%clk
0:00:13.8]} 1/2-1/2

[Event "Early-Titled-Tuesday-Blitz-September-05-2023"]
[Site "Chess.com"]
[Date "2023.09.05"]
[Round "4"]
[White "NovikovaGalina"]
[Black "szachuspl"]
[Result "1/2-1/2"]
[WhiteElo "2406"]
[BlackElo "2535"]
[TimeControl "180+1"]
[EndTime "8:39:11 PDT"]
[Termination "Game drawn by stalemate"]

1. e4 {[%clk 0:03:00.9]} 1... e5 {[%clk 0:02:58.2]} 2. Nf3 {[%clk 0:03:01.4]}
2... Nc6 {[%clk 0:02:57.8]} 3. Bc4 {[%clk 0:03:01.4]} 3... Nf6 {[%clk
0:02:57.3]} 4. Ng5 {[%clk 0:03:01]} 4... d5 {[%clk 0:02:57.3]} 5. exd5 {[%clk
0:03:01.9]} 5... Na5 {[%clk 0:02:57.2]} 6. Bb5+ {[%clk 0:03:02.4]} 6... c6
{[%clk 0:02:57.7]} 7. dxc6 {[%clk 0:03:03.3]} 7... bxc6 {[%clk 0:02:58.2]} 8.
Bd3 {[%clk 0:03:04]} 8... h6 {[%clk 0:02:51.9]} 9. Ne4 {[%clk 0:03:03.2]} 9...
Nxe4 {[%clk 0:02:32.7]} 10. Bxe4 {[%clk 0:03:02.8]} 10... Bd6 {[%clk 0:02:31.9]}
11. O-O {[%clk 0:02:55.7]} 11... O-O {[%clk 0:02:31.7]} 12. d3 {[%clk
0:02:51.5]} 12... f5 {[%clk 0:02:31.6]} 13. Bf3 {[%clk 0:02:52.2]} 13... Qc7
{[%clk 0:02:31.3]} 14. h3 {[%clk 0:02:46.2]} 14... Bd7 {[%clk 0:02:29.1]} 15.
Nc3 {[%clk 0:02:44.8]} 15... Rae8 {[%clk 0:02:28.5]} 16. Re1 {[%clk 0:02:36.9]}
16... Nb7 {[%clk 0:02:28]} 17. a4 {[%clk 0:02:24]} 17... Nc5 {[%clk 0:02:27.5]}
18. b3 {[%clk 0:01:51.7]} 18... Ne6 {[%clk 0:02:25.6]} 19. Ba3 {[%clk
0:01:45.4]} 19... Bxa3 {[%clk 0:02:25.6]} 20. Rxa3 {[%clk 0:01:46.3]} 20... Nd4
{[%clk 0:02:26]} 21. Ra1 {[%clk 0:01:41.7]} 21... Qd6 {[%clk 0:02:22.2]} 22. a5
{[%clk 0:01:30.2]} 22... Qc5 {[%clk 0:02:20.6]} 23. Qd2 {[%clk 0:01:21.8]} 23...
Nxf3+ {[%clk 0:02:12.6]} 24. gxf3 {[%clk 0:01:22.7]} 24... Rf6 {[%clk
0:02:12.6]} 25. Kh2 {[%clk 0:01:15.6]} 25... Qd6 {[%clk 0:02:10.8]} 26. Rg1
{[%clk 0:01:04.8]} 26... Kh7 {[%clk 0:02:07.2]} 27. Rg3 {[%clk 0:00:59.3]} 27...
Re7 {[%clk 0:02:04.1]} 28. Rag1 {[%clk 0:00:57.7]} 28... Qe6 {[%clk 0:01:48.8]}
29. f4 {[%clk 0:00:47.2]} 29... e4 {[%clk 0:01:37.6]} 30. Qe3 {[%clk 0:00:47.5]}
30... Be8 {[%clk 0:01:24.6]} 31. dxe4 {[%clk 0:00:41]} 31... fxe4 {[%clk
0:01:24.8]} 32. Qxe4+ {[%clk 0:00:38.5]} 32... Qxe4 {[%clk 0:01:18.7]} 33. Nxe4
{[%clk 0:00:39.4]} 33... Rxf4 {[%clk 0:01:13.8]} 34. R1g2 {[%clk 0:00:23.6]}
34... Rfxe4 {[%clk 0:01:12.4]} 35. Rc3 {[%clk 0:00:20.6]} 35... R4e5 {[%clk
0:01:06.7]} 36. b4 {[%clk 0:00:20.2]} 36... Re4 {[%clk 0:01:06.7]} 37. Rg4
{[%clk 0:00:19.6]} 37... Rxg4 {[%clk 0:01:06]} 38. hxg4 {[%clk 0:00:20.5]} 38...
Re4 {[%clk 0:01:06.5]} 39. Rb3 {[%clk 0:00:19.6]} 39... Rxg4 {[%clk 0:01:06.2]}
40. c3 {[%clk 0:00:18.5]} 40... Rc4 {[%clk 0:01:06.2]} 41. Kg3 {[%clk
0:00:15.6]} 41... g5 {[%clk 0:01:06.3]} 42. Kf3 {[%clk 0:00:16]} 42... Kg6
{[%clk 0:01:06.4]} 43. Ke3 {[%clk 0:00:16.5]} 43... Bf7 {[%clk 0:01:06.7]} 44.
Kd3 {[%clk 0:00:14.6]} 44... Rf4 {[%clk 0:01:05.6]} 45. Rb2 {[%clk 0:00:13.8]}
45... Bc4+ {[%clk 0:01:03.8]} 46. Ke3 {[%clk 0:00:12.8]} 46... h5 {[%clk
0:01:04]} 47. Rd2 {[%clk 0:00:12.8]} 47... h4 {[%clk 0:01:03.6]} 48. Rd6+ {[%clk
0:00:13.4]} 48... Kh5 {[%clk 0:01:02.8]} 49. Rxc6 {[%clk 0:00:13.6]} 49... h3
{[%clk 0:01:02.8]} 50. Rc8 {[%clk 0:00:14.1]} 50... Rh4 {[%clk 0:01:01.5]} 51.
Kf3 {[%clk 0:00:08.7]} 51... Bd5+ {[%clk 0:01:00.8]} 52. Kg3 {[%clk 0:00:07.9]}
52... h2 {[%clk 0:00:57.3]} 53. Rh8+ {[%clk 0:00:07.7]} 53... Kg6 {[%clk
0:00:57.8]} 54. Rxh4 {[%clk 0:00:07.3]} 54... gxh4+ {[%clk 0:00:58.2]} 55. Kxh2
{[%clk 0:00:08.2]} 55... Kg5 {[%clk 0:00:58.9]} 56. b5 {[%clk 0:00:07.6]} 56...
Kg4 {[%clk 0:00:55.5]} 57. b6 {[%clk 0:00:07.2]} 57... a6 {[%clk 0:00:54.5]} 58.
c4 {[%clk 0:00:06.6]} 58... Bb7 {[%clk 0:00:54.1]} 59. c5 {[%clk 0:00:06.7]}
59... Bc6 {[%clk 0:00:53.9]} 60. Kg1 {[%clk 0:00:06.3]} 60... h3 {[%clk
0:00:52.7]} 61. Kh2 {[%clk 0:00:07.2]} 61... Kh4 {[%clk 0:00:53.1]} 62. f4
{[%clk 0:00:06]} 62... Kg4 {[%clk 0:00:44.6]} 63. f5 {[%clk 0:00:06.4]} 63...
Kxf5 {[%clk 0:00:44.7]} 64. Kxh3 {[%clk 0:00:07.3]} 64... Ke5 {[%clk 0:00:45.3]}
65. Kg3 {[%clk 0:00:07.1]} 65... Kd5 {[%clk 0:00:45.9]} 66. Kf2 {[%clk
0:00:07.7]} 66... Kc4 {[%clk 0:00:46.4]} 67. Ke1 {[%clk 0:00:07.4]} 67... Kb5
{[%clk 0:00:46.8]} 68. Kd2 {[%clk 0:00:08.3]} 68... Kxa5 {[%clk 0:00:47.4]} 69.
Kc1 {[%clk 0:00:09]} 69... Kb4 {[%clk 0:00:47.9]} 70. Kb2 {[%clk 0:00:09.9]}
70... a5 {[%clk 0:00:48]} 71. Ka1 {[%clk 0:00:10.8]} 71... a4 {[%clk 0:00:48.2]}
72. Kb2 {[%clk 0:00:11.5]} 72... a3+ {[%clk 0:00:47.8]} 73. Ka1 {[%clk
0:00:12.4]} 73... Kb3 {[%clk 0:00:48]} 74. b7 {[%clk 0:00:13.3]} 74... Bxb7
{[%clk 0:00:46.7]} 75. c6 {[%clk 0:00:14.2]} 75... Bc8 {[%clk 0:00:47]} 76. c7
{[%clk 0:00:13.8]} 76... Kb4 {[%clk 0:00:39]} 77. Ka2 {[%clk 0:00:13.5]} 77...
Be6+ {[%clk 0:00:39]} 78. Ka1 {[%clk 0:00:13.9]} 78... Bc8 {[%clk 0:00:38.1]}
79. Ka2 {[%clk 0:00:13.5]} 79... Ka4 {[%clk 0:00:39]} 80. Ka1 {[%clk 0:00:13.9]}
80... Kb3 {[%clk 0:00:39.7]} 81. Kb1 {[%clk 0:00:13.9]} 81... a2+ {[%clk
0:00:28.1]} 82. Ka1 {[%clk 0:00:13.8]} 82... Ka3 {[%clk 0:00:27.1]} 1/2-1/2

[Event "Early-Titled-Tuesday-Blitz-September-05-2023"]
[Site "Chess.com"]
[Date "2023.09.05"]
[Round "4"]
[White "DarZay"]
[Black "vesalhamedinia"]
[Result "0-1"]
[WhiteElo "2270"]
[BlackElo "2488"]
[TimeControl "180+1"]
[EndTime "8:39:11 PDT"]
[Termination "vesalhamedinia won by resignation"]

1. e4 {[%clk 0:02:46.9]} 1... c5 {[%clk 0:02:59.3]} 2. Nf3 {[%clk 0:02:46.1]}
2... Nc6 {[%clk 0:02:59.1]} 3. d4 {[%clk 0:02:46.5]} 3... cxd4 {[%clk
0:02:58.7]} 4. Nxd4 {[%clk 0:02:46.9]} 4... Nf6 {[%clk 0:02:59.6]} 5. Nc3 {[%clk
0:02:47]} 5... e5 {[%clk 0:02:58.8]} 6. Ndb5 {[%clk 0:02:46.7]} 6... d6 {[%clk
0:02:58.7]} 7. Bg5 {[%clk 0:02:47.2]} 7... a6 {[%clk 0:02:57.9]} 8. Na3 {[%clk
0:02:47.6]} 8... b5 {[%clk 0:02:56.6]} 9. Nd5 {[%clk 0:02:47.7]} 9... Be7 {[%clk
0:02:57]} 10. Bxf6 {[%clk 0:02:47.8]} 10... Bxf6 {[%clk 0:02:57.9]} 11. c3
{[%clk 0:02:48.2]} 11... O-O {[%clk 0:02:57.6]} 12. Nc2 {[%clk 0:02:48.4]} 12...
Rb8 {[%clk 0:02:58.1]} 13. Be2 {[%clk 0:02:47.1]} 13... Bg5 {[%clk 0:02:58.3]}
14. Nce3 {[%clk 0:02:45.7]} 14... Be6 {[%clk 0:02:58.5]} 15. O-O {[%clk
0:02:41.3]} 15... Ne7 {[%clk 0:02:58.5]} 16. Qd3 {[%clk 0:02:10.5]} 16... Bxe3
{[%clk 0:02:52.2]} 17. Nxe3 {[%clk 0:02:09]} 17... d5 {[%clk 0:02:48]} 18. exd5
{[%clk 0:02:08.2]} 18... Nxd5 {[%clk 0:02:48.7]} 19. Nxd5 {[%clk 0:02:08.2]}
19... Bxd5 {[%clk 0:02:47.9]} 20. b3 {[%clk 0:02:00.6]} 20... Rc8 {[%clk
0:02:40.4]} 21. Rad1 {[%clk 0:01:56]} 21... Bb7 {[%clk 0:02:32.7]} 22. Qxd8
{[%clk 0:01:52.8]} 22... Rfxd8 {[%clk 0:02:32]} 23. c4 {[%clk 0:01:53.2]} 23...
bxc4 {[%clk 0:02:19.6]} 24. Bxc4 {[%clk 0:01:52.8]} 24... a5 {[%clk 0:02:19.6]}
25. Rfe1 {[%clk 0:01:49]} 25... Kf8 {[%clk 0:02:01]} 26. f3 {[%clk 0:01:46.6]}
26... f6 {[%clk 0:02:00.3]} 27. Kf2 {[%clk 0:01:45.1]} 27... Bc6 {[%clk
0:01:59.4]} 28. Ke3 {[%clk 0:01:39.8]} 28... a4 {[%clk 0:01:57]} 29. Rc1 {[%clk
0:01:34.5]} 29... Rb8 {[%clk 0:01:47.9]} 30. Be6 {[%clk 0:01:22]} 30... Bd7
{[%clk 0:01:32.1]} 31. Bc4 {[%clk 0:01:20.1]} 31... axb3 {[%clk 0:01:31]} 32.
axb3 {[%clk 0:01:20]} 32... Bb5 {[%clk 0:01:30.9]} 33. Rc3 {[%clk 0:01:16.3]}
33... Rd4 {[%clk 0:01:20.2]} 34. Rec1 {[%clk 0:01:13.2]} 34... Be8 {[%clk
0:01:14.2]} 35. g3 {[%clk 0:01:08.4]} 35... Ra8 {[%clk 0:01:12.7]} 36. f4 {[%clk
0:01:07.5]} 36... Ra2 {[%clk 0:00:53.6]} 37. f5 {[%clk 0:01:07.7]} 37... Rxh2
{[%clk 0:00:46.4]} 38. b4 {[%clk 0:01:05.4]} 38... Rb2 {[%clk 0:00:43.8]} 39. b5
{[%clk 0:01:04.1]} 39... Bxb5 {[%clk 0:00:34.3]} 40. Bxb5 {[%clk 0:01:03.9]}
40... Rxb5 {[%clk 0:00:35.2]} 41. Rc8+ {[%clk 0:01:03.7]} 41... Ke7 {[%clk
0:00:35.7]} 42. R1c7+ {[%clk 0:00:58.9]} 42... Rd7 {[%clk 0:00:20.5]} 43. Rxd7+
{[%clk 0:00:58]} 43... Kxd7 {[%clk 0:00:21.4]} 44. Rg8 {[%clk 0:00:58]} 44... g6
{[%clk 0:00:21.8]} 45. fxg6 {[%clk 0:00:49.7]} 45... hxg6 {[%clk 0:00:22.7]} 46.
Rxg6 {[%clk 0:00:50]} 46... Ke6 {[%clk 0:00:23.3]} 47. g4 {[%clk 0:00:49.4]}
47... Kf7 {[%clk 0:00:22.6]} 48. Rh6 {[%clk 0:00:49.1]} 48... Kg7 {[%clk
0:00:21.8]} 49. Rh4 {[%clk 0:00:45.1]} 49... Rb4 {[%clk 0:00:21.3]} 50. Kf3
{[%clk 0:00:43.9]} 50... Kg6 {[%clk 0:00:20.5]} 51. Rh5 {[%clk 0:00:42.6]} 51...
Rf4+ {[%clk 0:00:19.9]} 52. Kg3 {[%clk 0:00:41.6]} 52... Ra4 {[%clk 0:00:19.8]}
53. Rh8 {[%clk 0:00:40.2]} 53... Ra3+ {[%clk 0:00:19.6]} 54. Kh4 {[%clk
0:00:38.9]} 54... Ra1 {[%clk 0:00:17.2]} 55. Rg8+ {[%clk 0:00:38.6]} 55... Kf7
{[%clk 0:00:17.6]} 56. Rb8 {[%clk 0:00:38.2]} 56... Rg1 {[%clk 0:00:18]} 57. Rb6
{[%clk 0:00:36.5]} 57... Kg6 {[%clk 0:00:18.5]} 58. Rc6 {[%clk 0:00:35]} 58...
Rg2 {[%clk 0:00:18.2]} 59. Rb6 {[%clk 0:00:33.1]} 59... Rg1 {[%clk 0:00:18.6]}
60. Rc6 {[%clk 0:00:33.3]} 60... Rf1 {[%clk 0:00:18.4]} 61. Rb6 {[%clk
0:00:29.5]} 61... Rf4 {[%clk 0:00:18.4]} 62. Rc6 {[%clk 0:00:27.8]} 62... Rf1
{[%clk 0:00:18.6]} 63. Rb6 {[%clk 0:00:27.8]} 63... Rh1+ {[%clk 0:00:19.2]} 64.
Kg3 {[%clk 0:00:27.7]} 64... Kg5 {[%clk 0:00:20.1]} 65. Rb4 {[%clk 0:00:24.5]}
65... Rg1+ {[%clk 0:00:20.4]} 66. Kf3 {[%clk 0:00:23.8]} 66... Rc1 {[%clk
0:00:20.9]} 67. Rb3 {[%clk 0:00:20.7]} 67... Rc4 {[%clk 0:00:20.7]} 68. Rb8
{[%clk 0:00:19.6]} 68... Rc3+ {[%clk 0:00:19.9]} 69. Ke4 {[%clk 0:00:19.1]}
69... Rc4+ {[%clk 0:00:17.1]} 70. Kf3 {[%clk 0:00:18.5]} 70... Rf4+ {[%clk
0:00:17.2]} 71. Ke3 {[%clk 0:00:17.1]} 71... Kxg4 {[%clk 0:00:16.7]} 72. Rg8+
{[%clk 0:00:17.1]} 72... Kf5 {[%clk 0:00:17.2]} 73. Rf8 {[%clk 0:00:17.6]} 73...
Rb4 {[%clk 0:00:17.2]} 74. Re8 {[%clk 0:00:17.4]} 74... Rb3+ {[%clk 0:00:16.5]}
75. Ke2 {[%clk 0:00:17.7]} 75... Ke4 {[%clk 0:00:16.9]} 76. Rf8 {[%clk
0:00:18.3]} 76... f5 {[%clk 0:00:16.8]} 0-1